bitfinex/quotes_BTCUSD_20240819
["timestamp","ask_amount","ask_price","bid_price","bid_amount"]
[1724086009194,0.01097109,58555.0,58554.0,0.34227382]
[1724086009664,0.01097109,58555.0,58554.0,0.17149182]
[1724086010247,0.18175009,58555.0,58554.0,0.17149182]
[1724086010448,0.01097109,58555.0,58554.0,0.17149182]
[1724086010697,0.18175009,58555.0,58554.0,0.17190201]
[1724086011044,0.01097109,58555.0,58554.0,0.17190201]
[1724086011446,0.01097109,58555.0,58554.0,0.51346701]
[1724086011649,0.01097109,58555.0,58554.0,1.02581401]
[1724086011650,0.01096887,58555.0,58554.0,1.02581401]
[1724086012073,0.01096887,58555.0,58554.0,0.68424901]
[1724086012271,0.01096887,58555.0,58554.0,2.18424901]
[1724086012538,0.01096887,58555.0,58554.0,2.52581401]
[1724086013135,0.01096887,58555.0,58554.0,2.86737901]
[1724086013309,0.01096887,58555.0,58554.0,2.96737901]
[1724086015143,0.01187198,58555.0,58554.0,2.96737901]
[1724086015521,0.01187198,58555.0,58554.0,1.46737901]
[1724086015738,0.01187342,58555.0,58554.0,1.46737901]
[1724086016183,0.00249213,58555.0,58554.0,2.96737901]
[1724086016342,0.01187363,58555.0,58554.0,2.96737901]
[1724086017447,0.01187367,58555.0,58554.0,2.96737901]
[1724086019126,0.01187367,58555.0,58554.0,1.46737901]
[1724086019531,0.01187367,58555.0,58554.0,2.96737901]
[1724086019706,0.00249213,58555.0,58554.0,2.96737901]
[1724086019906,0.01187408,58555.0,58554.0,2.96737901]
[1724086020666,0.01187408,58555.0,58554.0,2.62581401]
[1724086021294,0.01187408,58555.0,58554.0,2.96737901]
[1724086022323,0.01187408,58555.0,58554.0,1.04271401]
[1724086024098,0.01187408,58555.0,58554.0,1.46097901]
[1724086024513,0.01187408,58555.0,58554.0,2.96097901]
[1724086025970,0.01187408,58555.0,58554.0,2.61941401]
[1724086026395,0.00249213,58555.0,58554.0,2.96097901]
[1724086026602,0.01186511,58555.0,58554.0,2.96097901]
[1724086027019,0.01186522,58555.0,58554.0,2.61941401]
[1724086027432,0.01186522,58555.0,58554.0,2.96097901]
[1724086028047,0.01186522,58555.0,58554.0,1.46097901]
[1724086028678,0.01186522,58555.0,58554.0,2.93097901]
[1724086028887,0.01186522,58555.0,58554.0,2.95447105]
[1724086030320,0.01186522,58555.0,58554.0,3.12581982]
[1724086030553,0.00249213,58555.0,58554.0,3.46834244]
[1724086030975,0.00190311,58555.0,58554.0,3.5195721]
[1724086031185,0.00090311,58555.0,58554.0,3.47034244]
[1724086031391,0.00190311,58555.0,58554.0,3.47034244]
[1724086031593,0.00290311,58555.0,58554.0,3.47134244]
[1724086031803,0.00190311,58555.0,58554.0,3.47134244]
[1724086032242,0.00190311,58555.0,58554.0,3.47034244]
[1724086032875,0.00190311,58555.0,58554.0,3.46738482]
[1724086033723,0.00190311,58555.0,58554.0,3.80894982]
[1724086033938,0.00290311,58555.0,58554.0,3.47638482]
[1724086034807,0.00290311,58555.0,58554.0,3.47934244]
[1724086035212,0.00290311,58555.0,58554.0,3.47638482]
[1724086035854,0.00290311,58555.0,58554.0,3.47934244]
[1724086036472,0.00290311,58555.0,58554.0,3.47638482]
[1724086038375,0.00290311,58555.0,58554.0,3.81794982]
[1724086038677,0.00290311,58555.0,58554.0,3.48016344]
[1724086039175,0.00290311,58555.0,58554.0,3.47720582]
[1724086042829,0.00290311,58555.0,58554.0,2.88759205]
[1724086043266,0.00290311,58555.0,58554.0,2.96669205]
[1724086044101,0.00290311,58555.0,58554.0,3.13804082]
[1724086044742,0.00290311,58555.0,58554.0,3.47960582]
[1724086047573,0.00290311,58555.0,58554.0,3.48056344]
[1724086047783,0.00290311,58555.0,58554.0,3.47960582]
[1724086047987,0.00290311,58555.0,58554.0,3.48256344]
[1724086048118,0.00290311,58555.0,58554.0,3.82512844]
[1724086048324,0.00290311,58555.0,58554.0,3.82612844]
[1724086048702,0.00290311,58555.0,58554.0,4.32655408]
[1724086049103,0.00290311,58555.0,58554.0,4.66811908]
[1724086049104,1.1e-07,58555.0,58554.0,4.66811908]
[1724086049631,0.00100011,58555.0,58554.0,4.67211908]
[1724086049837,0.00190322,58555.0,58554.0,4.67211908]
[1724086050043,0.00090311,58562.0,58554.0,4.67211908]
[1724086050044,0.00090311,58562.0,58561.0,2.22527381]
[1724086050243,0.00090311,58562.0,58561.0,3.39787144]
[1724086050455,0.00090311,58571.0,58570.0,1.33921581]
[1724086050663,0.00090311,58571.0,58570.0,2.61097705]
[1724086050874,0.00090311,58571.0,58570.0,4.11297705]
[1724086051713,0.00190311,58571.0,58570.0,4.12697705]
[1724086052060,0.00190311,58571.0,58570.0,4.16407213]
[1724086052061,0.00090311,58571.0,58570.0,4.16407213]
[1724086052324,0.00090311,58571.0,58570.0,4.11297705]
[1724086052523,0.00090311,58571.0,58570.0,4.45444805]
[1724086052692,0.00090311,58571.0,58570.0,4.53976313]
[1724086052894,0.00090311,58571.0,58570.0,4.96629966]
[1724086053098,0.00090311,58571.0,58570.0,5.0022313]
[1724086053375,0.00090311,58571.0,58570.0,5.00451919]
[1724086053745,0.00090311,58571.0,58570.0,4.99051919]
[1724086054354,0.00090311,58571.0,58570.0,4.60764148]
[1724086054528,1.1e-07,58571.0,58570.0,4.62164148]
[1724086054771,0.000902,58585.0,58581.0,1.62049881]
[1724086054981,0.000902,58585.0,58581.0,2.59015458]
[1724086055349,0.000902,58585.0,58581.0,2.657116]
[1724086055476,0.000902,58585.0,58581.0,4.157116]
[1724086056076,0.000902,58585.0,58581.0,4.254643]
[1724086056668,0.000902,58585.0,58581.0,4.240643]
[1724086057098,0.000902,58585.0,58581.0,4.268643]
[1724086057646,0.000902,58585.0,58581.0,4.254643]
[1724086057874,0.000902,58585.0,58581.0,4.268643]
[1724086058276,0.000902,58585.0,58581.0,4.2790362]
[1724086060605,1e-06,58582.0,58581.0,4.2790362]
[1724086060882,1e-06,58582.0,58581.0,4.3020362]
[1724086063160,1e-06,58582.0,58581.0,4.25840025]
[1724086063362,1e-06,58582.0,58581.0,4.3020362]
[1724086064394,0.00083721,58589.0,58588.0,0.00536781]
[1724086064744,2.1e-07,58589.0,58588.0,1.52830689]
[1724086064931,2.1e-07,58589.0,58588.0,2.62916553]
[1724086065160,0.51404632,58600.0,58598.0,0.85368019]
[1724086065434,0.092031,58605.0,58598.0,3.30764496]
[1724086065835,0.1391,58599.0,58598.0,3.33088432]
[1724086067007,0.1391,58599.0,58598.0,3.34188432]
[1724086068380,0.1391,58599.0,58598.0,3.35588432]
[1724086068581,0.0756,58599.0,58598.0,3.35588432]
[1724086068884,0.0756,58599.0,58598.0,3.35204098]
[1724086069069,0.0756,58599.0,58598.0,3.35504098]
[1724086069266,0.0756,58599.0,58598.0,3.36804098]
[1724086071681,0.0756,58599.0,58598.0,3.02673298]
[1724086074490,0.076502,58599.0,58598.0,3.02673298]
[1724086078223,0.001102,58599.0,58598.0,3.36804098]
[1724086078421,0.001102,58599.0,58598.0,3.3709986]
[1724086078773,0.001102,58599.0,58598.0,3.5195986]
[1724086079314,0.001102,58599.0,58598.0,3.8609066]
[1724086079715,0.001102,58599.0,58598.0,3.8629066]
[1724086079893,0.001102,58599.0,58598.0,3.51764098]
[1724086080734,0.001102,58599.0,58598.0,3.85894898]
[1724086081134,0.001102,58599.0,58598.0,3.8609066]
[1724086081376,0.001102,58599.0,58598.0,3.8629066]
[1724086082685,0.001102,58599.0,58598.0,3.85894898]
[1724086083598,0.001102,58599.0,58598.0,3.51764098]
[1724086084012,0.001102,58599.0,58598.0,3.51664098]
[1724086084212,0.001102,58599.0,58598.0,3.51764098]
[1724086084826,0.001102,58599.0,58598.0,3.43524098]
[1724086085030,0.001102,58599.0,58598.0,3.5156986]
[1724086085324,0.001102,58599.0,58598.0,3.8570066]
[1724086085952,1e-06,58599.0,58598.0,4.1983146]
[1724086086161,0.009031,58605.0,58598.0,4.1983146]
[1724086086162,0.009031,58605.0,58604.0,2.02746881]
[1724086086363,0.009031,58605.0,58604.0,2.59091758]
[1724086086567,0.009031,58605.0,58604.0,2.6133234]
[1724086087180,0.009031,58605.0,58604.0,2.65695935]
[1724086087383,0.009031,58605.0,58604.0,2.65300173]
[1724086087587,0.009031,58605.0,58604.0,2.6113234]
[1724086087995,0.009031,58605.0,58604.0,2.6133234]
[1724086088208,0.009031,58605.0,58604.0,2.65695935]
[1724086088580,0.009031,58605.0,58604.0,2.66718863]
[1724086089313,0.009031,58605.0,58604.0,2.68118863]
[1724086089750,0.009031,58605.0,58604.0,4.17723101]
[1724086089957,0.009031,58605.0,58604.0,3.98849506]
[1724086091452,0.009031,58605.0,58604.0,4.00249506]
[1724086091845,0.009031,58605.0,58604.0,3.66022206]
[1724086094313,0.009031,58605.0,58604.0,3.36812206]
[1724086094519,0.090531,58605.0,58604.0,3.36812206]
[1724086094927,0.154431,58605.0,58604.0,2.75550029]
[1724086095137,0.154431,58605.0,58604.0,2.74150029]
[1724086095338,0.154431,58605.0,58604.0,2.72750029]
[1724086095544,0.154431,58605.0,58604.0,2.74150029]
[1724086096136,0.154431,58605.0,58604.0,2.75250029]
[1724086096341,0.154431,58605.0,58604.0,2.85250029]
[1724086097210,0.154431,58605.0,58604.0,2.83850029]
[1724086097357,0.154431,58605.0,58604.0,2.84750029]
[1724086098041,0.154431,58605.0,58604.0,3.36012206]
[1724086098452,0.009031,58605.0,58604.0,3.65222206]
[1724086098672,0.0080648,58605.0,58604.0,3.65222206]
[1724086099121,0.0080648,58605.0,58604.0,3.36012206]
[1724086099932,0.1508648,58605.0,58604.0,2.84750029]
[1724086100562,0.1508648,58605.0,58604.0,2.83727101]
[1724086100978,0.1508648,58605.0,58604.0,2.49599801]
[1724086101594,0.16022678,58605.0,58604.0,2.49599801]
[1724086101805,0.16022678,58605.0,58604.0,0.65472501]
[1724086102020,0.3214978,58605.0,58604.0,0.04240582]
[1724086102226,0.33085882,58605.0,58604.0,0.04240582]
[1724086102434,0.67212582,58605.0,58604.0,0.04240582]
[1724086102855,1.01339282,58605.0,58604.0,0.03140582]
[1724086103070,1.66339698,58605.0,58604.0,0.03140582]
[1724086103281,1.66339698,58605.0,58604.0,0.009]
[1724086103282,1.32212998,58605.0,58604.0,0.009]
[1724086103489,1.32212998,58605.0,58604.0,0.018]
[1724086103490,1.34512998,58605.0,58604.0,0.018]
[1724086103700,1.34512998,58605.0,58604.0,0.009]
[1724086104124,1.33576896,58605.0,58604.0,0.009]
[1724086104315,1.20774321,58605.0,58604.0,0.016]
[1724086104525,1.20774321,58605.0,58604.0,0.007]
[1724086104941,1.20774321,58605.0,58604.0,0.006]
[1724086105146,0.0781,58601.0,58598.0,0.170653]
[1724086105399,0.0781,58599.0,58595.0,0.00041019]
[1724086105606,0.00936264,58598.0,58596.0,0.170659]
[1724086105861,0.1441,58597.0,58596.0,0.170659]
[1724086106093,0.15346264,58597.0,58596.0,0.61238919]
[1724086106803,0.1441,58597.0,58596.0,0.27106919]
[1724086107003,0.15346385,58597.0,58596.0,0.270659]
[1724086107427,0.0829,58594.0,58590.0,0.00041019]
[1724086107631,0.0829,58592.0,58589.0,0.00082]
[1724086107925,0.1493,58592.0,58591.0,0.170673]
[1724086108170,0.15866324,58592.0,58591.0,0.51243219]
[1724086108385,0.15866333,58592.0,58591.0,0.51243219]
[1724086108805,0.1493,58592.0,58591.0,0.85378119]
[1724086109697,0.1493,58592.0,58591.0,0.86178119]
[1724086111300,0.1493,58592.0,58591.0,0.861371]
[1724086111507,0.1493,58592.0,58591.0,0.520022]
[1724086111933,0.15866013,58592.0,58591.0,2.367371]
[1724086112302,0.15866013,58592.0,58591.0,0.526022]
[1724086112507,0.1493,58592.0,58591.0,0.526022]
[1724086112704,0.1493,58592.0,58591.0,0.867371]
[1724086113391,0.1493,58592.0,58591.0,0.526022]
[1724086114431,0.1493,58592.0,58591.0,0.867371]
[1724086114612,0.1493,58592.0,58591.0,0.526022]
[1724086115616,0.1493,58592.0,58591.0,0.52643219]
[1724086116325,0.1493,58592.0,58591.0,2.02643219]
[1724086116551,0.1493,58592.0,58591.0,2.36778119]
[1724086116766,0.0829,58592.0,58591.0,2.36778119]
[1724086116994,0.0829,58592.0,58591.0,2.70913019]
[1724086117606,0.0603,58595.0,58594.0,0.853327]
[1724086117607,0.1357,58595.0,58594.0,0.853327]
[1724086117814,0.0754,58595.0,58594.0,0.85373719]
[1724086118074,0.0754,58595.0,58594.0,1.29506819]
[1724086118633,0.0754,58595.0,58594.0,1.30306819]
[1724086121240,0.0754,58595.0,58594.0,2.80306819]
[1724086122610,0.0754,58595.0,58594.0,2.82554916]
[1724086123304,0.08475968,58595.0,58594.0,2.82554916]
[1724086124405,0.00935968,58595.0,58594.0,2.82554916]
[1724086124836,0.0606,58598.0,58597.0,0.85369519]
[1724086125059,0.06995961,58598.0,58597.0,0.85369519]
[1724086125268,0.06995961,58598.0,58597.0,0.87617438]
[1724086125473,0.06995999,58598.0,58597.0,0.87617438]
[1724086125881,0.14695999,58598.0,58597.0,0.87576419]
[1724086127486,0.31761399,58598.0,58597.0,0.02247919]
[1724086127682,0.65892199,58598.0,58597.0,0.02247919]
[1724086127892,0.1462,58597.0,58594.0,0.170664]
[1724086128084,0.1462,58595.0,58594.0,0.170664]
[1724086128235,0.15555999,58595.0,58594.0,0.170664]
[1724086128646,0.15555999,58595.0,58594.0,0.511995]
[1724086128985,0.15555999,58595.0,58594.0,0.170664]
[1724086129188,0.15555999,58595.0,58594.0,0.172664]
[1724086129406,0.15555999,58595.0,58594.0,0.172665]
[1724086129586,0.15555999,58595.0,58594.0,0.170665]
[1724086130526,0.15555999,58595.0,58594.0,0.511996]
[1724086130791,0.15555999,58595.0,58594.0,0.170665]
[1724086130982,0.15555999,58595.0,58594.0,0.175665]
[1724086131183,0.15555999,58595.0,58594.0,0.516996]
[1724086131347,0.15555999,58595.0,58594.0,0.51740619]
[1724086131548,0.15555999,58595.0,58594.0,2.02040619]
[1724086131749,0.15555999,58595.0,58594.0,2.36173719]
[1724086132151,0.09215999,58595.0,58594.0,2.70306819]
[1724086132358,0.09215999,58595.0,58594.0,3.65124796]
[1724086132359,0.00935999,58595.0,58594.0,3.65124796]
[1724086132561,0.00902001,58606.0,58604.0,0.918682]
[1724086132716,0.01743057,58605.0,58604.0,2.19274977]
[1724086132912,0.01743057,58605.0,58604.0,2.29274977]
[1724086132913,0.0080648,58605.0,58604.0,2.29274977]
[1724086133116,0.0080648,58605.0,58604.0,3.79511758]
[1724086133400,0.0080648,58605.0,58604.0,3.79711758]
[1724086133528,0.0080648,58605.0,58604.0,3.79315996]
[1724086134156,0.0080648,58605.0,58604.0,3.80715996]
[1724086134365,0.0080648,58605.0,58604.0,3.82511758]
[1724086134569,0.0080648,58605.0,58604.0,3.81111758]
[1724086134770,0.0080648,58605.0,58604.0,3.82511758]
[1724086135365,0.0080648,58605.0,58604.0,3.82115996]
[1724086135581,0.0080648,58605.0,58604.0,3.82311758]
[1724086135851,0.0080648,58605.0,58604.0,3.83326518]
[1724086136057,0.0080648,58605.0,58604.0,3.83526518]
[1724086136411,0.0080648,58605.0,58604.0,4.17653818]
[1724086137466,0.0080648,58605.0,58604.0,4.14853818]
[1724086137677,0.0080648,58605.0,58604.0,4.17099997]
[1724086137873,0.0080648,58605.0,58604.0,4.18499997]
[1724086138311,0.009031,58614.0,58609.0,1.88020981]
[1724086138519,0.009031,58614.0,58613.0,0.94939881]
[1724086138731,0.009031,58614.0,58613.0,1.80123196]
[1724086138956,0.009031,58614.0,58613.0,4.00599785]
[1724086139130,0.009031,58614.0,58613.0,4.10599785]
[1724086139336,0.009031,58614.0,58613.0,4.10795547]
[1724086139762,0.009031,58614.0,58613.0,4.10995547]
[1724086140158,0.009031,58614.0,58613.0,4.10599785]
[1724086140360,0.009031,58614.0,58613.0,3.77877685]
[1724086140517,0.009031,58614.0,58613.0,3.78907593]
[1724086141279,0.009031,58614.0,58613.0,3.80307593]
[1724086141478,0.009031,58614.0,58613.0,3.80703355]
[1724086141819,0.009031,58614.0,58613.0,4.14825455]
[1724086142064,0.009031,58614.0,58613.0,3.80307593]
[1724086142534,0.009031,58614.0,58613.0,4.14825455]
[1724086142739,0.009031,58614.0,58613.0,3.81125431]
[1724086143036,0.009031,58614.0,58613.0,3.80729669]
[1724086143298,0.009031,58614.0,58613.0,3.80925431]
[1724086143457,0.009031,58614.0,58613.0,3.81125431]
[1724086144004,0.009031,58614.0,58613.0,4.15247531]
[1724086144585,0.009031,58614.0,58613.0,3.80729669]
[1724086145189,0.009031,58614.0,58613.0,3.80703355]
[1724086145363,0.009031,58614.0,58613.0,4.14825455]
[1724086146991,0.0002,58639.0,58618.0,1.95582381]
[1724086146992,0.0796,58632.0,58618.0,1.95582381]
[1724086147193,0.0796,58632.0,58618.0,2.22917258]
[1724086147584,0.0796,58632.0,58618.0,3.72917258]
[1724086147789,0.0796,58632.0,58618.0,3.74752779]
[1724086147949,0.0831,58623.0,58618.0,3.32943579]
[1724086148150,0.0002,58639.0,58618.0,3.32943579]
[1724086148151,0.0831,58626.0,58618.0,3.32943579]
[1724086148353,0.0831,58626.0,58618.0,3.34339341]
[1724086148569,0.0831,58626.0,58618.0,3.35539341]
[1724086149365,0.0632,58628.0,58618.0,3.35539341]
[1724086149974,0.0807,58629.0,58618.0,3.77652779]
[1724086151049,0.0807,58629.0,58618.0,3.7807474]
[1724086151671,0.0807,58629.0,58618.0,3.78470502]
[1724086152492,0.0807,58629.0,58618.0,3.78048541]
[1724086153108,0.0807,58629.0,58618.0,3.77652779]
[1724086153440,0.0807,58629.0,58618.0,3.77552779]
[1724086154261,0.0615,58631.0,58618.0,3.69362779]
[1724086154262,0.0813,58622.0,58618.0,3.69362779]
[1724086154472,0.0813,58622.0,58618.0,3.35243579]
[1724086154701,0.1444,58622.0,58618.0,3.35243579]
[1724086156524,0.0813,58622.0,58618.0,3.35243579]
[1724086158974,0.001102,58619.0,58618.0,3.35243579]
[1724086161328,0.00069129,58619.0,58618.0,3.35539341]
[1724086161707,0.00069129,58619.0,58618.0,3.35243579]
[1724086169277,0.00069129,58619.0,58618.0,3.34243579]
[1724086169502,0.00069129,58619.0,58618.0,3.35643579]
[1724086169834,0.00069129,58619.0,58618.0,3.49963579]
[1724086170255,0.00069129,58619.0,58618.0,3.48663579]
[1724086170462,0.00069129,58619.0,58618.0,3.50063579]
[1724086171534,0.00069129,58619.0,58618.0,3.50159341]
[1724086172027,0.00069129,58619.0,58618.0,3.84378541]
[1724086172251,0.00069129,58619.0,58618.0,3.50063579]
[1724086172687,0.00069129,58619.0,58618.0,3.84282779]
[1724086174481,0.00069129,58619.0,58618.0,3.96158541]
[1724086175052,0.00069129,58619.0,58618.0,3.95962779]
[1724086176425,0.00069129,58619.0,58618.0,3.96158541]
[1724086177039,0.00069129,58619.0,58618.0,3.95962779]
[1724086178367,0.00069129,58619.0,58618.0,4.46488106]
[1724086179166,0.00069129,58619.0,58618.0,4.12368906]
[1724086179432,0.00069129,58619.0,58618.0,3.73577136]
[1724086179638,0.00069129,58619.0,58618.0,3.85257136]
[1724086179848,0.00069129,58619.0,58618.0,3.9806149]
[1724086181931,0.00069129,58619.0,58618.0,3.98062824]
[1724086183170,0.00069129,58619.0,58618.0,3.98062912]
[1724086186532,0.00069129,58619.0,58618.0,3.98063233]
[1724086187571,0.00069129,58619.0,58618.0,3.85258195]
[1724086191199,0.00069129,58619.0,58618.0,3.85257522]
[1724086195174,0.00069129,58619.0,58618.0,3.85339522]
[1724086195876,0.00069129,58619.0,58618.0,3.85339393]
[1724086197048,0.00069129,58619.0,58618.0,4.27178593]
[1724086197258,0.00069129,58619.0,58618.0,4.33578593]
[1724086197478,0.00069129,58619.0,58618.0,4.33774355]
[1724086197703,0.00069129,58619.0,58618.0,5.02107201]
[1724086197919,0.00069129,58619.0,58618.0,5.36226401]
[1724086198151,0.00069129,58619.0,58618.0,5.02307201]
[1724086198390,2.9e-07,58619.0,58618.0,4.86939501]
[1724086198631,0.00902001,58620.0,58619.0,1.68090481]
[1724086198871,0.00902001,58620.0,58619.0,2.70599772]
[1724086199165,0.00902001,58620.0,58619.0,2.72824222]
[1724086199386,0.00902001,58620.0,58619.0,4.22624222]
[1724086199601,0.00902001,58620.0,58619.0,4.3410846]
[1724086199816,0.00902001,58620.0,58619.0,4.3068646]
[1724086200023,0.00902001,58620.0,58619.0,4.3308457]
[1724086200237,0.00902001,58620.0,58619.0,4.87444077]
[1724086200479,0.00902001,58620.0,58619.0,4.84839839]
[1724086200724,0.00902001,58620.0,58619.0,4.85039839]
[1724086200964,0.00902001,58620.0,58619.0,3.97046518]
[1724086201205,0.00902001,58620.0,58619.0,4.35296867]
[1724086201449,0.00902001,58620.0,58619.0,2.47644567]
[1724086201687,0.00902001,58620.0,58619.0,2.46244567]
[1724086202175,0.00902001,58620.0,58619.0,2.44844567]
[1724086202422,0.00902001,58620.0,58619.0,2.46244567]
[1724086203241,0.009031,58630.0,58629.0,0.00536781]
[1724086203499,0.009031,58630.0,58629.0,0.35871658]
[1724086203761,0.009031,58630.0,58629.0,0.93794412]
[1724086204004,0.009031,58630.0,58629.0,2.43575927]
[1724086204278,0.009031,58630.0,58629.0,2.46134365]
[1724086204578,0.009031,58630.0,58629.0,2.35900614]
[1724086204824,0.009031,58630.0,58629.0,2.44950614]
[1724086205591,0.009031,58630.0,58629.0,2.46350614]
[1724086206525,0.009031,58630.0,58629.0,2.63454852]
[1724086206784,0.009031,58630.0,58629.0,2.63650614]
[1724086207080,0.009031,58630.0,58629.0,2.63850614]
[1724086207775,0.009031,58630.0,58629.0,2.63449887]
[1724086208232,0.009031,58630.0,58629.0,2.63872034]
[1724086208464,0.009031,58630.0,58629.0,2.76840026]
[1724086208696,0.009031,58630.0,58629.0,2.77844846]
[1724086209202,0.009031,58630.0,58629.0,2.65272616]
[1724086209439,0.009031,58630.0,58629.0,2.78044734]
[1724086209693,0.009031,58630.0,58629.0,2.7804147]
[1724086209928,0.009031,58630.0,58629.0,2.77645708]
[1724086210560,0.073431,58630.0,58629.0,2.33773561]
[1724086210828,0.073431,58630.0,58629.0,1.88288735]
[1724086211098,0.009031,58630.0,58629.0,1.88288617]
[1724086211331,0.009031,58630.0,58629.0,1.88388655]
[1724086211578,0.009031,58630.0,58629.0,2.31715265]
[1724086211809,0.009031,58630.0,58629.0,2.35761148]
[1724086212045,0.009031,58630.0,58629.0,2.35365386]
[1724086212515,0.009031,58630.0,58629.0,2.45575664]
[1724086213213,0.009031,58630.0,58629.0,2.45771426]
[1724086214183,0.00022625,58630.0,58629.0,2.48524241]
[1724086214391,0.0002,58639.0,58638.0,0.00536781]
[1724086214883,0.0002,58639.0,58638.0,0.61101658]
[1724086215112,0.0002,58639.0,58638.0,2.21101658]
[1724086215367,0.0002,58639.0,58638.0,2.52476675]
[1724086215604,0.0782,58652.0,58638.0,2.52476675]
[1724086215605,0.0782,58652.0,58651.0,0.00041019]
[1724086215827,0.0611,58655.0,58652.0,0.00041019]
[1724086216049,0.0613,58659.0,58652.0,0.25124118]
[1724086216261,0.0613,58659.0,58652.0,1.85660578]
[1724086216262,0.1384,58659.0,58652.0,1.85660578]
[1724086216490,0.0773,58659.0,58652.0,1.79864394]
[1724086216717,0.0002,58659.0,58652.0,1.79664394]
[1724086217123,0.0002,58659.0,58652.0,1.79864394]
[1724086217340,0.0002,58659.0,58652.0,1.81264394]
[1724086217544,0.0002,58659.0,58652.0,1.79864394]
[1724086219956,0.00902001,58658.0,58657.0,0.77079724]
[1724086220196,0.00902001,58658.0,58657.0,2.72522977]
[1724086220412,0.00902001,58664.0,58663.0,0.29716781]
[1724086220626,0.00902001,58664.0,58663.0,0.64982492]
[1724086220837,0.00902001,58664.0,58663.0,0.67161614]
[1724086221048,0.00902001,58664.0,58663.0,2.17161614]
[1724086221891,0.00902001,58664.0,58663.0,2.18561614]
[1724086222589,0.00902001,58664.0,58663.0,2.19556172]
[1724086222796,0.00902001,58664.0,58663.0,2.19215338]
[1724086223009,0.00902001,58664.0,58663.0,2.12429576]
[1724086223210,0.00902001,58664.0,58663.0,2.12625338]
[1724086223625,0.0631,58674.0,58663.0,2.12625338]
[1724086223626,0.05614002,58674.0,58673.0,0.00041019]
[1724086223832,0.0753,58675.0,58673.0,0.00041019]
[1724086223833,0.0753,58675.0,58674.0,0.00041019]
[1724086224045,0.00902001,58698.0,58677.0,0.00041019]
[1724086224046,0.08432001,58678.0,58677.0,0.00041019]
[1724086224275,0.08432001,58678.0,58677.0,0.17175896]
[1724086224491,0.08432001,58678.0,58677.0,1.46472996]
[1724086224698,0.08432001,58678.0,58677.0,1.48647765]
[1724086224924,0.08432001,58678.0,58677.0,2.98647765]
[1724086225168,0.08432001,58678.0,58677.0,3.32732665]
[1724086225659,0.08432001,58678.0,58677.0,3.33732665]
[1724086226104,0.08432001,58678.0,58677.0,3.35032665]
[1724086226595,0.08432001,58678.0,58677.0,3.00947765]
[1724086226823,0.14822001,58678.0,58677.0,0.99686969]
[1724086227925,0.14822001,58678.0,58677.0,0.56024052]
[1724086228337,0.14822001,58678.0,58677.0,2.06024052]
[1724086228745,0.14822001,58678.0,58677.0,0.56024052]
[1724086229363,0.14822001,58678.0,58677.0,0.89727988]
[1724086229567,0.14822001,58678.0,58677.0,0.99727988]
[1724086232090,0.14822001,58678.0,58677.0,0.99686969]
[1724086232518,0.14822001,58678.0,58677.0,0.99727988]
[1724086232926,0.14822001,58678.0,58677.0,0.65643088]
[1724086233366,0.14822001,58678.0,58677.0,2.15643088]
[1724086233799,0.14822001,58678.0,58677.0,2.15602069]
[1724086235065,0.14822001,58678.0,58677.0,2.83771869]
[1724086235287,0.14822001,58678.0,58677.0,2.83812888]
[1724086236768,0.14822001,58678.0,58677.0,2.84820231]
[1724086238958,0.14822001,58678.0,58677.0,0.31517169]
[1724086239170,0.14822001,58678.0,58677.0,0.65602069]
[1724086239370,0.1651272,58678.0,58677.0,0.65602069]
[1724086239574,0.14822001,58678.0,58677.0,0.14474769]
[1724086239780,0.14822001,58678.0,58677.0,0.04474769]
[1724086239990,1.80431878,58678.0,58677.0,0.04474769]
[1724086240200,0.145,58660.0,58655.0,0.00041019]
[1724086240421,0.145,58660.0,58655.0,0.340971]
[1724086240422,0.0809,58659.0,58655.0,0.340971]
[1724086240644,0.0809,58659.0,58654.0,2.01404632]
[1724086240645,0.0809,58659.0,58654.0,1.5]
[1724086241070,0.405048,58660.0,58654.0,1.67049]
[1724086241071,0.0809,58656.0,58654.0,1.67049]
[1724086241279,0.0809,58656.0,58655.0,0.170488]
[1724086241507,0.0809,58656.0,58655.0,0.511464]
[1724086241724,0.0809,58656.0,58655.0,0.85244]
[1724086242145,0.0809,58656.0,58655.0,1.29382619]
[1724086242352,0.1393,58660.0,58659.0,0.85279219]
[1724086242558,0.0752,58660.0,58659.0,0.85279219]
[1724086242778,0.0752,58660.0,58659.0,0.97620535]
[1724086242988,0.0752,58660.0,58659.0,1.31715835]
[1724086244274,0.0752,58666.0,58663.0,0.00041019]
[1724086244492,0.0752,58666.0,58659.0,0.12341316]
[1724086244493,0.0752,58666.0,58665.0,0.51178719]
[1724086244701,0.0845721,58666.0,58665.0,0.95270519]
[1724086244914,0.0845721,58666.0,58665.0,2.79362319]
[1724086245388,0.17944301,58678.0,58668.0,0.00041019]
[1724086245389,0.00902001,58678.0,58668.0,0.00041019]
[1724086245619,0.00902001,58678.0,58677.0,0.17083419]
[1724086245825,0.01839288,58678.0,58677.0,0.17083419]
[1724086246039,0.16189288,58678.0,58677.0,0.17083419]
[1724086246244,0.16189288,58678.0,58677.0,0.19422318]
[1724086246451,0.16189288,58678.0,58677.0,0.19381299]
[1724086246658,0.16189288,58678.0,58677.0,0.19422318]
[1724086247082,0.16189288,58678.0,58677.0,0.53507218]
[1724086247083,0.16189344,58678.0,58677.0,0.53507218]
[1724086247288,0.16189344,58678.0,58677.0,0.53607218]
[1724086247289,0.17289344,58678.0,58677.0,0.53607218]
[1724086247506,0.17289344,58678.0,58677.0,0.87692118]
[1724086247715,0.18389344,58678.0,58677.0,0.87692118]
[1724086248377,0.18389344,58678.0,58677.0,0.53566199]
[1724086248796,0.18389344,58678.0,58677.0,0.87692118]
[1724086249009,0.10659344,58678.0,58677.0,2.37692118]
[1724086249233,0.09922001,58678.0,58677.0,2.81777018]
[1724086249452,0.02202001,58678.0,58677.0,2.81777018]
[1724086249872,0.01102001,58678.0,58677.0,2.81677018]
[1724086250082,0.01302001,58678.0,58677.0,2.81677018]
[1724086250538,0.00902001,58678.0,58677.0,3.32896795]
[1724086250963,0.01102001,58678.0,58677.0,3.83601695]
[1724086251178,0.01102001,58678.0,58677.0,3.850037]
[1724086251601,0.01102001,58678.0,58677.0,3.84607938]
[1724086252242,0.01102001,58678.0,58677.0,3.8502995]
[1724086252455,0.01102001,58678.0,58677.0,3.85225712]
[1724086252668,0.01102001,58678.0,58677.0,3.85425712]
[1724086253999,0.01002001,58678.0,58677.0,3.84425712]
[1724086254212,0.01002001,58678.0,58677.0,3.83407938]
[1724086254640,0.01102001,58678.0,58677.0,3.84807938]
[1724086254857,0.00902001,58678.0,58677.0,3.82407938]
[1724086255279,0.01002001,58678.0,58677.0,3.83807938]
[1724086255485,0.01002001,58678.0,58677.0,3.82407938]